[Event "Titled Tuesday Blitz July 26 Late 2022"]
[White "Gulecyuz, Deniz"]
[Black "Bogaudinov, Rushan"]
[WhiteFideId "30921341"]
[BlackFideId "4129288"]
[WhiteElo "1923"]
[BlackElo "2010"]
[Result "1/2-1/2"]
[Round "07"]
[TimeControl "180+1"]
[Date "2022.07.27"]
[WhiteClock "0:00:20"]
[BlackClock "0:00:12"]

1. e4 {[%clk 0:02:56]}  d6 {[%clk 0:02:54]} 2. d4 {[%clk 0:02:55]}  a6 {[%clk 0:02:54]} 3. c4 {[%clk 0:02:53]}  e6 {[%clk 0:02:54]} 4. Nc3 {[%clk 0:02:54]}  Nf6 {[%clk 0:02:53]} 5. Bd3 {[%clk 0:02:54]}  Be7 {[%clk 0:02:54]} 6. Be3 {[%clk 0:02:53]}  e5 {[%clk 0:02:54]} 7. d5 {[%clk 0:02:53]}  Ng4 {[%clk 0:02:54]} 8. Bd2 {[%clk 0:02:52]}  O-O {[%clk 0:02:53]} 9. h3 {[%clk 0:02:52]}  Nf6 {[%clk 0:02:53]} 10. Nf3 {[%clk 0:02:44]}  Ne8 {[%clk 0:02:52]} 11. b4 {[%clk 0:02:44]}  f5 {[%clk 0:02:51]} 12. exf5 {[%clk 0:02:35]}  Bxf5 {[%clk 0:02:52]} 13. Bxf5 {[%clk 0:02:35]}  Rxf5 {[%clk 0:02:52]} 14. Qc2 {[%clk 0:02:36]}  Rf8 {[%clk 0:02:51]} 15. O-O {[%clk 0:02:25]}  Nd7 {[%clk 0:02:51]} 16. Rfd1 {[%clk 0:02:25]}  a5 {[%clk 0:02:49]} 17. a3 {[%clk 0:02:23]}  Nb6 {[%clk 0:02:44]} 18. Nb5 {[%clk 0:02:19]}  c6 {[%clk 0:02:41]} 19. dxc6 {[%clk 0:02:14]}  bxc6 {[%clk 0:02:42]} 20. c5 {[%clk 0:02:14]}  cxb5 {[%clk 0:02:40]} 21. cxb6 {[%clk 0:02:14]}  Qxb6 {[%clk 0:02:41]} 22. Be3 {[%clk 0:02:14]}  Qb7 {[%clk 0:02:39]} 23. bxa5 {[%clk 0:02:13]}  Rxa5 {[%clk 0:02:33]} 24. Ng5 {[%clk 0:02:12]}  Bxg5 {[%clk 0:02:25]} 25. Bxg5 {[%clk 0:02:12]}  h6 {[%clk 0:02:24]} 26. Be3 {[%clk 0:02:12]}  Ra4 {[%clk 0:02:19]} 27. Qb3+ {[%clk 0:02:06]}  Kh7 {[%clk 0:02:15]} 28. Rac1 {[%clk 0:01:48]}  Qa6 {[%clk 0:02:12]} 29. Qe6 {[%clk 0:01:31]}  Rxa3 {[%clk 0:02:00]} 30. Rc8 {[%clk 0:01:20]}  Qa4 {[%clk 0:01:50]} 31. Rdc1 {[%clk 0:01:06]}  b4 {[%clk 0:01:42]} 32. Bxh6 {[%clk 0:00:56]}  Rf6 {[%clk 0:01:21]} 33. Qe7 {[%clk 0:00:38]}  Kxh6 {[%clk 0:01:16]} 34. Rxe8 {[%clk 0:00:38]}  Ra1 {[%clk 0:01:03]} 35. Rh8+ {[%clk 0:00:33]}  Kg6 {[%clk 0:01:02]} 36. Rxa1 {[%clk 0:00:20]}  Qxa1+ {[%clk 0:01:03]} 37. Kh2 {[%clk 0:00:20]}  Qa4 {[%clk 0:01:03]} 38. Rg8 {[%clk 0:00:19]}  Rf7 {[%clk 0:00:43]} 39. Qe6+ {[%clk 0:00:19]}  Rf6 {[%clk 0:00:43]} 40. Qe7 {[%clk 0:00:19]}  Rf7 {[%clk 0:00:18]} 41. Qxd6+ {[%clk 0:00:19]}  Kh7 {[%clk 0:00:17]} 42. Qb8 {[%clk 0:00:20]}  b3 {[%clk 0:00:13]} 43. Rh8+ {[%clk 0:00:20]}  Kg6 {[%clk 0:00:13]} 44. Qxe5 {[%clk 0:00:19]}  Qf4+ {[%clk 0:00:12]} 45. Qxf4 {[%clk 0:00:20]}  Rxf4 {[%clk 0:00:13]} 46. Rb8 {[%clk 0:00:20]}  Rxf2 {[%clk 0:00:13]} 47. Rxb3 {[%clk 0:00:21]}  Rf6 {[%clk 0:00:13]} 48. Rb5 {[%clk 0:00:21]}  Kh7 {[%clk 0:00:14]} 49. Kg3 {[%clk 0:00:22]}  Rg6+ {[%clk 0:00:14]} 50. Kf3 {[%clk 0:00:22]}  Rf6+ {[%clk 0:00:15]} 51. Kg4 {[%clk 0:00:22]}  Rg6+ {[%clk 0:00:15]} 52. Rg5 {[%clk 0:00:23]}  Rb6 {[%clk 0:00:14]} 53. g3 {[%clk 0:00:23]}  Rb4+ {[%clk 0:00:15]} 54. Kh5 {[%clk 0:00:20]}  Rb3 {[%clk 0:00:13]} 55. h4 {[%clk 0:00:21]}  Rb4 {[%clk 0:00:13]} 56. Rc5 {[%clk 0:00:20]}  Ra4 {[%clk 0:00:13]} 57. g4 {[%clk 0:00:20]}  Ra7 {[%clk 0:00:12]} 58. Kg5 {[%clk 0:00:20]}  Rd7 {[%clk 0:00:12]} 59. h5 {[%clk 0:00:21]}  Ra7 {[%clk 0:00:12]} 60. Kh4 {[%clk 0:00:20]} 1/2-1/2


[Site "https://www.chess.com"]

[Event "Titled Tuesday Blitz July 26 Late 2022"]
[White "Hjartarson, Johann"]
[Black "Goncalves, Davi Sulzbacher"]
[WhiteFideId "2300044"]
[BlackFideId "2154510"]
[WhiteElo "2458"]
[BlackElo "2107"]
[Result "1-0"]
[Round "07"]
[TimeControl "180+1"]
[Date "2022.07.27"]
[WhiteClock "0:00:16"]
[BlackClock "0:00:02"]

1. Nf3 {[%clk 0:03:00]}  Nf6 {[%clk 0:02:59]} 2. g3 {[%clk 0:03:00]}  e6 {[%clk 0:02:59]} 3. Bg2 {[%clk 0:02:59]}  Be7 {[%clk 0:03:00]} 4. O-O {[%clk 0:02:58]}  O-O {[%clk 0:03:00]} 5. c4 {[%clk 0:02:57]}  b6 {[%clk 0:03:00]} 6. b3 {[%clk 0:02:57]}  Bb7 {[%clk 0:03:00]} 7. Bb2 {[%clk 0:02:57]}  c5 {[%clk 0:03:01]} 8. Nc3 {[%clk 0:02:54]}  d6 {[%clk 0:03:01]} 9. d4 {[%clk 0:02:53]}  cxd4 {[%clk 0:03:00]} 10. Qxd4 {[%clk 0:02:53]}  Nbd7 {[%clk 0:02:59]} 11. e4 {[%clk 0:02:49]}  Qb8 {[%clk 0:02:59]} 12. Rad1 {[%clk 0:02:43]}  a6 {[%clk 0:02:58]} 13. Rfe1 {[%clk 0:02:41]}  Rc8 {[%clk 0:02:54]} 14. h3 {[%clk 0:02:34]}  b5 {[%clk 0:02:53]} 15. Nd2 {[%clk 0:02:09]}  Bd8 {[%clk 0:02:42]} 16. cxb5 {[%clk 0:01:59]}  Bb6 {[%clk 0:02:37]} 17. Qd3 {[%clk 0:01:57]}  Ne5 {[%clk 0:02:35]} 18. Qb1 {[%clk 0:01:47]}  Qa7 {[%clk 0:02:05]} 19. Re2 {[%clk 0:01:30]}  axb5 {[%clk 0:02:04]} 20. Nxb5 {[%clk 0:01:29]}  Qxa2 {[%clk 0:02:04]} 21. Nxd6 {[%clk 0:01:24]}  Qa6 {[%clk 0:01:29]} 22. Nxc8 {[%clk 0:01:18]}  Qxe2 {[%clk 0:01:29]} 23. Nxb6 {[%clk 0:01:18]}  Rd8 {[%clk 0:01:23]} 24. Bxe5 {[%clk 0:01:13]}  Nxe4 {[%clk 0:01:24]} 25. Bxe4 {[%clk 0:01:06]}  Bxe4 {[%clk 0:01:24]} 26. Re1 {[%clk 0:01:02]}  Qxd2 {[%clk 0:00:44]} 27. Qxe4 {[%clk 0:00:59]}  h5 {[%clk 0:00:39]} 28. Nc4 {[%clk 0:00:58]}  Qb4 {[%clk 0:00:36]} 29. Qe3 {[%clk 0:00:52]}  Rd5 {[%clk 0:00:31]} 30. Ra1 {[%clk 0:00:45]}  Qb7 {[%clk 0:00:25]} 31. Qf3 {[%clk 0:00:36]}  f6 {[%clk 0:00:20]} 32. Qxh5 {[%clk 0:00:31]}  fxe5 {[%clk 0:00:16]} 33. Nxe5 {[%clk 0:00:30]}  Rb5 {[%clk 0:00:07]} 34. Re1 {[%clk 0:00:28]}  Qd5 {[%clk 0:00:03]} 35. Qe8+ {[%clk 0:00:27]}  Kh7 {[%clk 0:00:03]} 36. Qg6+ {[%clk 0:00:26]}  Kh8 {[%clk 0:00:04]} 37. Nf7+ {[%clk 0:00:26]}  Kg8 {[%clk 0:00:04]} 38. Rxe6 {[%clk 0:00:23]}  Rb8 {[%clk 0:00:02]} 39. Ng5 {[%clk 0:00:20]}  Qd1+ {[%clk 0:00:01]} 40. Kh2 {[%clk 0:00:20]}  Qf3 {[%clk 0:00:02]} 41. Qh7+ {[%clk 0:00:16]} 1-0


[Site "https://www.chess.com"]

[Event "Titled Tuesday Blitz July 26 Late 2022"]
[White "Ismagilov, Damir"]
[Black "Nakamura, Hikaru"]
[WhiteFideId "34199982"]
[BlackFideId "2016192"]
[WhiteElo "2138"]
[BlackElo "2850"]
[Result "0-1"]
[Round "07"]
[TimeControl "180+1"]
[Date "2022.07.26"]
[WhiteClock "0:00:05"]
[BlackClock "0:02:24"]

1. d4 {[%clk 0:03:00]}  f5 {[%clk 0:02:59]} 2. c4 {[%clk 0:02:41]}  Nf6 {[%clk 0:02:57]} 3. Nc3 {[%clk 0:02:40]}  d6 {[%clk 0:02:55]} 4. Nf3 {[%clk 0:02:38]}  g6 {[%clk 0:02:54]} 5. e3 {[%clk 0:02:37]}  Bg7 {[%clk 0:02:51]} 6. b4 {[%clk 0:02:37]}  O-O {[%clk 0:02:51]} 7. Bb2 {[%clk 0:02:32]}  Qe8 {[%clk 0:02:50]} 8. Be2 {[%clk 0:02:23]}  e5 {[%clk 0:02:49]} 9. dxe5 {[%clk 0:02:13]}  dxe5 {[%clk 0:02:49]} 10. Nb5 {[%clk 0:02:14]}  Qe7 {[%clk 0:02:48]} 11. Bxe5 {[%clk 0:02:00]}  Qxb4+ {[%clk 0:02:43]} 12. Bc3 {[%clk 0:01:58]}  Qe7 {[%clk 0:02:42]} 13. O-O {[%clk 0:01:52]}  a6 {[%clk 0:02:35]} 14. Nbd4 {[%clk 0:01:47]}  Ne4 {[%clk 0:02:35]} 15. Qb3 {[%clk 0:01:22]}  c5 {[%clk 0:02:32]} 16. Bb4 {[%clk 0:00:36]}  cxb4 {[%clk 0:02:31]} 17. Rfd1 {[%clk 0:00:34]}  Kh8 {[%clk 0:02:29]} 18. h3 {[%clk 0:00:32]}  a5 {[%clk 0:02:29]} 19. Rac1 {[%clk 0:00:31]}  Nd7 {[%clk 0:02:29]} 20. Nb5 {[%clk 0:00:30]}  Ndc5 {[%clk 0:02:28]} 21. Nfd4 {[%clk 0:00:28]}  Nxb3 {[%clk 0:02:27]} 22. Nxb3 {[%clk 0:00:26]}  Bd7 {[%clk 0:02:27]} 23. N5d4 {[%clk 0:00:14]}  Nc3 {[%clk 0:02:27]} 24. Bf3 {[%clk 0:00:10]}  Nxd1 {[%clk 0:02:26]} 25. Rxd1 {[%clk 0:00:07]}  a4 {[%clk 0:02:26]} 26. Nb5 {[%clk 0:00:04]}  axb3 {[%clk 0:02:25]} 27. axb3 {[%clk 0:00:02]}  Bxb5 {[%clk 0:02:24]} 28. h4 {[%clk 0:00:03]}  Ra1 {[%clk 0:02:24]} 29. h5 {[%clk 0:00:04]}  Rxd1+ {[%clk 0:02:23]} 30. Kh2 {[%clk 0:00:04]}  Qd6+ {[%clk 0:02:23]} 31. g3 {[%clk 0:00:04]}  Bc6 {[%clk 0:02:23]} 32. hxg6 {[%clk 0:00:04]}  Bxf3 {[%clk 0:02:23]} 33. gxh7 {[%clk 0:00:05]}  Rh1# {[%clk 0:02:24]} 0-1


[Site "https://www.chess.com"]

[Event "Titled Tuesday Blitz July 26 Late 2022"]
[White "Jacobson, Brandon"]
[Black "Meshkovs, Nikita"]
[WhiteFideId "30901561"]
[BlackFideId "11602740"]
[WhiteElo "2362"]
[BlackElo "2506"]
[Result "1-0"]
[Round "07"]
[TimeControl "180+1"]
[Date "2022.07.26"]
[WhiteClock "0:00:07"]
[BlackClock "0:00:06"]

1. Nf3 {[%clk 0:03:00]}  d5 {[%clk 0:02:57]} 2. e3 {[%clk 0:03:01]}  Nf6 {[%clk 0:02:58]} 3. c4 {[%clk 0:03:01]}  e6 {[%clk 0:02:58]} 4. Nc3 {[%clk 0:03:02]}  a6 {[%clk 0:02:55]} 5. b3 {[%clk 0:03:02]}  c5 {[%clk 0:02:50]} 6. cxd5 {[%clk 0:03:02]}  exd5 {[%clk 0:02:49]} 7. d4 {[%clk 0:03:02]}  Nc6 {[%clk 0:02:50]} 8. Bb2 {[%clk 0:03:02]}  Bd6 {[%clk 0:02:42]} 9. dxc5 {[%clk 0:03:01]}  Bxc5 {[%clk 0:02:43]} 10. Be2 {[%clk 0:03:01]}  O-O {[%clk 0:02:43]} 11. O-O {[%clk 0:03:01]}  Re8 {[%clk 0:02:41]} 12. Rc1 {[%clk 0:02:58]}  Qd6 {[%clk 0:02:38]} 13. Na4 {[%clk 0:02:35]}  Ba7 {[%clk 0:02:37]} 14. Bxf6 {[%clk 0:02:35]}  gxf6 {[%clk 0:02:31]} 15. Nd4 {[%clk 0:02:08]}  Nxd4 {[%clk 0:01:59]} 16. exd4 {[%clk 0:02:08]}  Bf5 {[%clk 0:02:00]} 17. Nc5 {[%clk 0:02:06]}  Re7 {[%clk 0:02:00]} 18. Bf3 {[%clk 0:01:56]}  Rae8 {[%clk 0:01:59]} 19. b4 {[%clk 0:01:56]}  Bb8 {[%clk 0:01:36]} 20. g3 {[%clk 0:01:56]}  Bh3 {[%clk 0:01:36]} 21. Bg2 {[%clk 0:01:57]}  Bf5 {[%clk 0:01:36]} 22. Qb3 {[%clk 0:01:51]}  Be4 {[%clk 0:01:28]} 23. Rfe1 {[%clk 0:01:33]}  Kg7 {[%clk 0:01:27]} 24. Re3 {[%clk 0:01:28]}  f5 {[%clk 0:01:02]} 25. Rce1 {[%clk 0:01:03]}  f4 {[%clk 0:00:57]} 26. Nxe4 {[%clk 0:00:47]}  dxe4 {[%clk 0:00:55]} 27. Rxe4 {[%clk 0:00:47]}  Rxe4 {[%clk 0:00:54]} 28. Rxe4 {[%clk 0:00:48]}  Rxe4 {[%clk 0:00:54]} 29. Bxe4 {[%clk 0:00:49]}  Qxd4 {[%clk 0:00:54]} 30. Bxb7 {[%clk 0:00:50]}  Ba7 {[%clk 0:00:49]} 31. Qc2 {[%clk 0:00:24]}  Qxb4 {[%clk 0:00:41]} 32. Bxa6 {[%clk 0:00:24]}  fxg3 {[%clk 0:00:40]} 33. hxg3 {[%clk 0:00:23]}  Qa3 {[%clk 0:00:41]} 34. Bd3 {[%clk 0:00:23]}  Qd6 {[%clk 0:00:34]} 35. Kg2 {[%clk 0:00:20]}  h5 {[%clk 0:00:32]} 36. Qe2 {[%clk 0:00:17]}  Qd5+ {[%clk 0:00:31]} 37. Be4 {[%clk 0:00:17]}  Qe5 {[%clk 0:00:31]} 38. Qf3 {[%clk 0:00:16]}  Qd4 {[%clk 0:00:27]} 39. Bd5 {[%clk 0:00:13]}  Qf6 {[%clk 0:00:25]} 40. Qe2 {[%clk 0:00:13]}  Qf5 {[%clk 0:00:22]} 41. Bf3 {[%clk 0:00:11]}  Kh6 {[%clk 0:00:17]} 42. Qa6+ {[%clk 0:00:11]}  Kh7 {[%clk 0:00:07]} 43. Qxa7 {[%clk 0:00:10]}  h4 {[%clk 0:00:08]} 44. Qd4 {[%clk 0:00:08]}  h3+ {[%clk 0:00:08]} 45. Kh2 {[%clk 0:00:03]}  Qxf3 {[%clk 0:00:09]} 46. Kxh3 {[%clk 0:00:04]}  Qh1+ {[%clk 0:00:07]} 47. Kg4 {[%clk 0:00:04]}  Qb1 {[%clk 0:00:05]} 48. a4 {[%clk 0:00:03]}  Kg8 {[%clk 0:00:03]} 49. Qd8+ {[%clk 0:00:03]}  Kg7 {[%clk 0:00:03]} 50. Qd4+ {[%clk 0:00:03]}  Kg8 {[%clk 0:00:03]} 51. Qf4 {[%clk 0:00:02]}  Qd1+ {[%clk 0:00:02]} 52. Kg5 {[%clk 0:00:03]}  Kg7 {[%clk 0:00:02]} 53. Qf6+ {[%clk 0:00:03]}  Kg8 {[%clk 0:00:03]} 54. Qf5 {[%clk 0:00:03]}  Qxa4 {[%clk 0:00:03]} 55. Qc8+ {[%clk 0:00:03]}  Kg7 {[%clk 0:00:03]} 56. Qc3+ {[%clk 0:00:03]}  Kg8 {[%clk 0:00:04]} 57. Qe5 {[%clk 0:00:03]}  Qc4 {[%clk 0:00:02]} 58. Qf4 {[%clk 0:00:02]}  Qd5+ {[%clk 0:00:03]} 59. Kh4 {[%clk 0:00:02]}  Qd8+ {[%clk 0:00:03]} 60. Qg5+ {[%clk 0:00:02]}  Qxg5+ {[%clk 0:00:04]} 61. Kxg5 {[%clk 0:00:03]}  Kg7 {[%clk 0:00:04]} 62. Kf5 {[%clk 0:00:04]}  Kg8 {[%clk 0:00:05]} 63. Kf6 {[%clk 0:00:05]}  Kf8 {[%clk 0:00:06]} 64. g4 {[%clk 0:00:05]}  Kg8 {[%clk 0:00:06]} 65. g5 {[%clk 0:00:05]}  Kf8 {[%clk 0:00:07]} 66. f3 {[%clk 0:00:04]}  Kg8 {[%clk 0:00:07]} 67. f4 {[%clk 0:00:04]}  Kf8 {[%clk 0:00:07]} 68. f5 {[%clk 0:00:05]}  Kg8 {[%clk 0:00:08]} 69. Ke7 {[%clk 0:00:03]}  Kg7 {[%clk 0:00:07]} 70. Ke8 {[%clk 0:00:04]}  Kg8 {[%clk 0:00:03]} 71. f6 {[%clk 0:00:04]}  Kh7 {[%clk 0:00:02]} 72. Kxf7 {[%clk 0:00:05]}  Kh8 {[%clk 0:00:02]} 73. Ke7 {[%clk 0:00:05]}  Kh7 {[%clk 0:00:03]} 74. f7 {[%clk 0:00:05]}  Kg6 {[%clk 0:00:03]} 75. f8=Q {[%clk 0:00:06]}  Kh7 {[%clk 0:00:04]} 76. Qf6 {[%clk 0:00:06]}  Kg8 {[%clk 0:00:04]} 77. Qg6+ {[%clk 0:00:05]}  Kh8 {[%clk 0:00:05]} 78. Qh5+ {[%clk 0:00:06]}  Kg8 {[%clk 0:00:06]} 79. g6 {[%clk 0:00:06]}  Kg7 {[%clk 0:00:06]} 80. Qh7# {[%clk 0:00:07]} 1-0


[Site "https://www.chess.com"]

[Event "Titled Tuesday Blitz July 26 Late 2022"]
[White "Jian, Alex"]
[Black "Ardila, Oscar Humberto"]
[WhiteFideId "30901022"]
[BlackFideId "4404742"]
[WhiteElo "2095"]
[BlackElo "1956"]
[Result "1-0"]
[Round "07"]
[TimeControl "180+1"]
[Date "2022.07.27"]
[WhiteClock "0:00:01"]
[BlackClock "0:00:05"]

1. f3 {[%clk 0:03:00]}  Nf6 {[%clk 0:02:59]} 2. Kf2 {[%clk 0:03:00]}  c5 {[%clk 0:02:59]} 3. Kg3 {[%clk 0:03:01]}  Nc6 {[%clk 0:03:00]} 4. e3 {[%clk 0:03:00]}  d5 {[%clk 0:02:59]} 5. Ne2 {[%clk 0:02:59]}  e5 {[%clk 0:03:00]} 6. d3 {[%clk 0:02:58]}  Bd6 {[%clk 0:03:00]} 7. Kf2 {[%clk 0:02:58]}  O-O {[%clk 0:03:00]} 8. g3 {[%clk 0:02:58]}  Re8 {[%clk 0:03:00]} 9. Bg2 {[%clk 0:02:58]}  Bd7 {[%clk 0:02:59]} 10. Rf1 {[%clk 0:02:56]}  Qc7 {[%clk 0:02:59]} 11. Kg1 {[%clk 0:02:56]}  Rad8 {[%clk 0:02:59]} 12. Nbc3 {[%clk 0:02:53]}  a6 {[%clk 0:02:56]} 13. e4 {[%clk 0:02:53]}  d4 {[%clk 0:02:52]} 14. Nb1 {[%clk 0:02:53]}  b5 {[%clk 0:02:52]} 15. f4 {[%clk 0:02:51]}  c4 {[%clk 0:02:47]} 16. a3 {[%clk 0:02:45]}  Rc8 {[%clk 0:02:40]} 17. Nd2 {[%clk 0:02:36]}  Ne7 {[%clk 0:02:36]} 18. Nf3 {[%clk 0:02:26]}  Ng6 {[%clk 0:02:29]} 19. f5 {[%clk 0:02:23]}  Ne7 {[%clk 0:02:25]} 20. Ne1 {[%clk 0:02:22]}  h6 {[%clk 0:02:22]} 21. h3 {[%clk 0:02:21]}  a5 {[%clk 0:01:58]} 22. g4 {[%clk 0:02:17]}  Kf8 {[%clk 0:01:54]} 23. Ng3 {[%clk 0:02:16]}  Neg8 {[%clk 0:01:53]} 24. h4 {[%clk 0:02:13]}  b4 {[%clk 0:01:50]} 25. axb4 {[%clk 0:02:10]}  Bxb4 {[%clk 0:01:48]} 26. g5 {[%clk 0:02:05]}  Nh7 {[%clk 0:01:41]} 27. Rf2 {[%clk 0:01:38]}  Bxe1 {[%clk 0:01:35]} 28. Qxe1 {[%clk 0:01:37]}  cxd3 {[%clk 0:01:36]} 29. cxd3 {[%clk 0:01:36]}  Bb5 {[%clk 0:01:33]} 30. Bf1 {[%clk 0:01:30]}  a4 {[%clk 0:01:33]} 31. Bd2 {[%clk 0:01:14]}  hxg5 {[%clk 0:01:23]} 32. hxg5 {[%clk 0:01:14]}  Ne7 {[%clk 0:01:17]} 33. f6 {[%clk 0:01:04]}  Ng6 {[%clk 0:01:15]} 34. Nf5 {[%clk 0:00:54]}  gxf6 {[%clk 0:01:15]} 35. gxf6 {[%clk 0:00:53]}  Nxf6 {[%clk 0:01:14]} 36. Bb4+ {[%clk 0:00:38]}  Kg8 {[%clk 0:01:14]} 37. Nd6 {[%clk 0:00:36]}  Kg7 {[%clk 0:01:04]} 38. Nxb5 {[%clk 0:00:32]}  Qd7 {[%clk 0:01:01]} 39. Nd6 {[%clk 0:00:28]}  Nf4 {[%clk 0:00:55]} 40. Nf5+ {[%clk 0:00:22]}  Kg6 {[%clk 0:00:55]} 41. Rg2+ {[%clk 0:00:16]}  Ng4 {[%clk 0:00:10]} 42. Rxg4+ {[%clk 0:00:15]}  Kf6 {[%clk 0:00:09]} 43. Qh4+ {[%clk 0:00:13]}  Ke6 {[%clk 0:00:10]} 44. Rxf4 {[%clk 0:00:07]}  Rg8+ {[%clk 0:00:09]} 45. Kf2 {[%clk 0:00:06]}  exf4 {[%clk 0:00:09]} 46. Bh3 {[%clk 0:00:06]}  Qb5 {[%clk 0:00:08]} 47. Nxd4+ {[%clk 0:00:05]}  Ke5 {[%clk 0:00:07]} 48. Nxb5 {[%clk 0:00:04]}  Rc2+ {[%clk 0:00:07]} 49. Kf1 {[%clk 0:00:04]}  f3 {[%clk 0:00:05]} 50. Qe7+ {[%clk 0:00:04]}  Kf4 {[%clk 0:00:05]} 51. Qf6+ {[%clk 0:00:03]}  Ke3 {[%clk 0:00:05]} 52. Qh6+ {[%clk 0:00:03]}  Kxd3 {[%clk 0:00:05]} 53. Bg2 {[%clk 0:00:01]}  fxg2+ {[%clk 0:00:05]} 54. Kg1 {[%clk 0:00:01]}  Rxb2 {[%clk 0:00:05]} 55. Qd6+ {[%clk 0:00:01]}  Kc2 {[%clk 0:00:05]} 56. Qc5+ {[%clk 0:00:01]}  Kb3 {[%clk 0:00:05]} 57. Qd5+ {[%clk 0:00:01]}  Kc2 {[%clk 0:00:05]} 58. Qc4# {[%clk 0:00:01]} 1-0


[Site "https://www.chess.com"]

[Event "Titled Tuesday Blitz July 26 Late 2022"]
[White "Kalavannan, Koby"]
[Black "Blanco Ronquillo, Humberto L."]
[WhiteFideId "425753"]
[BlackFideId "3504239"]
[WhiteElo "1927"]
[BlackElo "2423"]
[Result "0-1"]
[Round "07"]
[TimeControl "180+1"]
[Date "2022.07.27"]
[WhiteClock "0:00:07"]
[BlackClock "0:00:09"]

1. d4 {[%clk 0:03:00]}  d5 {[%clk 0:02:59]} 2. Nf3 {[%clk 0:03:00]}  e6 {[%clk 0:02:58]} 3. c4 {[%clk 0:03:00]}  a6 {[%clk 0:02:57]} 4. cxd5 {[%clk 0:03:00]}  exd5 {[%clk 0:02:58]} 5. Nc3 {[%clk 0:03:00]}  h6 {[%clk 0:02:58]} 6. Bf4 {[%clk 0:03:00]}  Nf6 {[%clk 0:02:57]} 7. Rc1 {[%clk 0:02:57]}  Bd6 {[%clk 0:02:57]} 8. Ne5 {[%clk 0:02:54]}  O-O {[%clk 0:02:55]} 9. e3 {[%clk 0:02:54]}  Re8 {[%clk 0:02:54]} 10. Bd3 {[%clk 0:02:53]}  c5 {[%clk 0:02:51]} 11. O-O {[%clk 0:02:40]}  c4 {[%clk 0:02:51]} 12. Bb1 {[%clk 0:02:39]}  b5 {[%clk 0:02:52]} 13. Qf3 {[%clk 0:02:24]}  Bb7 {[%clk 0:02:51]} 14. a4 {[%clk 0:02:14]}  b4 {[%clk 0:02:50]} 15. Ne2 {[%clk 0:02:09]}  Bxe5 {[%clk 0:01:07]} 16. Bxe5 {[%clk 0:02:04]}  Nbd7 {[%clk 0:01:06]} 17. Bd6 {[%clk 0:02:00]}  Qb6 {[%clk 0:01:01]} 18. Bf4 {[%clk 0:01:46]}  Ne4 {[%clk 0:01:00]} 19. Rfd1 {[%clk 0:01:43]}  a5 {[%clk 0:00:51]} 20. Ng3 {[%clk 0:01:43]}  Nxg3 {[%clk 0:00:51]} 21. Qxg3 {[%clk 0:01:39]}  Qe6 {[%clk 0:00:48]} 22. h4 {[%clk 0:01:21]}  Bc6 {[%clk 0:00:48]} 23. b3 {[%clk 0:01:11]}  cxb3 {[%clk 0:00:42]} 24. Bf5 {[%clk 0:01:12]}  Qxf5 {[%clk 0:00:41]} 25. Rxc6 {[%clk 0:01:12]}  Re6 {[%clk 0:00:29]} 26. Rxe6 {[%clk 0:00:57]}  Qxe6 {[%clk 0:00:30]} 27. Rb1 {[%clk 0:00:57]}  Nb6 {[%clk 0:00:28]} 28. Be5 {[%clk 0:00:50]}  f6 {[%clk 0:00:28]} 29. Bf4 {[%clk 0:00:49]}  Kh7 {[%clk 0:00:24]} 30. h5 {[%clk 0:00:46]}  Qf5 {[%clk 0:00:23]} 31. Rxb3 {[%clk 0:00:45]}  Nxa4 {[%clk 0:00:23]} 32. e4 {[%clk 0:00:34]}  Qxe4 {[%clk 0:00:19]} 33. Re3 {[%clk 0:00:34]}  Qb1+ {[%clk 0:00:19]} 34. Kh2 {[%clk 0:00:33]}  Qf5 {[%clk 0:00:20]} 35. Qh4 {[%clk 0:00:25]}  Nc3 {[%clk 0:00:18]} 36. Rf3 {[%clk 0:00:18]}  Ne4 {[%clk 0:00:16]} 37. Bxh6 {[%clk 0:00:15]}  Qe6 {[%clk 0:00:15]} 38. Bc1 {[%clk 0:00:13]}  a4 {[%clk 0:00:13]} 39. h6 {[%clk 0:00:13]}  g5 {[%clk 0:00:12]} 40. Qh5 {[%clk 0:00:12]}  Rg8 {[%clk 0:00:10]} 41. Re3 {[%clk 0:00:10]}  Rg6 {[%clk 0:00:10]} 42. Kg1 {[%clk 0:00:08]}  Rxh6 {[%clk 0:00:10]} 43. Qd1 {[%clk 0:00:08]}  Qf5 {[%clk 0:00:09]} 44. Qxa4 {[%clk 0:00:07]}  Qxf2# {[%clk 0:00:09]} 0-1


[Site "https://www.chess.com"]

[Event "Titled Tuesday Blitz July 26 Late 2022"]
[White "Karas, Marek"]
[Black "Rastbod, Ali"]
[WhiteFideId "14928558"]
[BlackFideId "12567477"]
[WhiteElo "2250"]
[BlackElo "2135"]
[Result "1/2-1/2"]
[Round "07"]
[TimeControl "180+1"]
[Date "2022.07.26"]
[WhiteClock "0:00:20"]
[BlackClock "0:01:07"]

1. d4 {[%clk 0:02:59]}  f5 {[%clk 0:02:56]} 2. Qd3 {[%clk 0:02:59]}  d5 {[%clk 0:02:55]} 3. Bf4 {[%clk 0:02:58]}  Nf6 {[%clk 0:02:55]} 4. e3 {[%clk 0:02:55]}  e6 {[%clk 0:02:55]} 5. c4 {[%clk 0:02:55]}  Bd6 {[%clk 0:02:55]} 6. Bxd6 {[%clk 0:02:54]}  cxd6 {[%clk 0:02:56]} 7. Nc3 {[%clk 0:02:55]}  dxc4 {[%clk 0:02:56]} 8. Qxc4 {[%clk 0:02:55]}  O-O {[%clk 0:02:57]} 9. Nf3 {[%clk 0:02:55]}  a6 {[%clk 0:02:57]} 10. Be2 {[%clk 0:02:54]}  b5 {[%clk 0:02:58]} 11. Qd3 {[%clk 0:02:54]}  Bb7 {[%clk 0:02:58]} 12. O-O {[%clk 0:02:53]}  Ne4 {[%clk 0:02:58]} 13. a3 {[%clk 0:02:49]}  Nd7 {[%clk 0:02:58]} 14. Nd2 {[%clk 0:02:49]}  Nxd2 {[%clk 0:02:57]} 15. Qxd2 {[%clk 0:02:49]}  Nb6 {[%clk 0:02:58]} 16. Qd1 {[%clk 0:02:40]}  Rc8 {[%clk 0:02:56]} 17. Bf3 {[%clk 0:02:39]}  Bxf3 {[%clk 0:02:56]} 18. Qxf3 {[%clk 0:02:40]}  d5 {[%clk 0:02:57]} 19. Rfc1 {[%clk 0:02:36]}  Nc4 {[%clk 0:02:56]} 20. Qe2 {[%clk 0:02:31]}  Qb6 {[%clk 0:02:57]} 21. Nd1 {[%clk 0:02:23]}  a5 {[%clk 0:02:56]} 22. f4 {[%clk 0:02:15]}  a4 {[%clk 0:02:55]} 23. Nf2 {[%clk 0:02:15]}  Na5 {[%clk 0:02:53]} 24. Rxc8 {[%clk 0:02:03]}  Rxc8 {[%clk 0:02:54]} 25. Nd3 {[%clk 0:02:00]}  Nb3 {[%clk 0:02:54]} 26. Rf1 {[%clk 0:01:58]}  Qc6 {[%clk 0:02:53]} 27. Ne5 {[%clk 0:01:54]}  Qb7 {[%clk 0:02:41]} 28. h3 {[%clk 0:01:51]}  Na5 {[%clk 0:02:41]} 29. g4 {[%clk 0:01:42]}  g6 {[%clk 0:02:41]} 30. g5 {[%clk 0:01:36]}  Nc4 {[%clk 0:02:40]} 31. Rc1 {[%clk 0:01:32]}  Nxe5 {[%clk 0:02:37]} 32. Rxc8+ {[%clk 0:01:32]}  Qxc8 {[%clk 0:02:38]} 33. dxe5 {[%clk 0:01:31]}  Qc5 {[%clk 0:02:38]} 34. Qd2 {[%clk 0:01:28]}  h6 {[%clk 0:02:35]} 35. h4 {[%clk 0:01:28]}  hxg5 {[%clk 0:02:32]} 36. hxg5 {[%clk 0:01:29]}  Kf7 {[%clk 0:02:33]} 37. Kf2 {[%clk 0:01:26]}  Ke8 {[%clk 0:02:28]} 38. Qd4 {[%clk 0:01:13]}  Qc6 {[%clk 0:01:55]} 39. Qb4 {[%clk 0:01:07]}  Kd7 {[%clk 0:01:54]} 40. Ke1 {[%clk 0:01:03]}  Kc7 {[%clk 0:01:46]} 41. Qe7+ {[%clk 0:01:02]}  Kb6 {[%clk 0:01:46]} 42. Qd8+ {[%clk 0:01:01]}  Ka6 {[%clk 0:01:46]} 43. Kd2 {[%clk 0:01:00]}  b4 {[%clk 0:01:34]} 44. axb4 {[%clk 0:00:57]}  Kb5 {[%clk 0:01:34]} 45. Qd6 {[%clk 0:00:47]}  Qxd6 {[%clk 0:01:18]} 46. exd6 {[%clk 0:00:47]}  Kc6 {[%clk 0:01:19]} 47. Kc3 {[%clk 0:00:40]}  Kxd6 {[%clk 0:01:19]} 48. Kd4 {[%clk 0:00:36]}  Kc6 {[%clk 0:01:19]} 49. Kd3 {[%clk 0:00:34]}  Kb6 {[%clk 0:01:18]} 50. Kd4 {[%clk 0:00:34]}  Kb5 {[%clk 0:01:14]} 51. Kc3 {[%clk 0:00:34]}  Kb6 {[%clk 0:01:10]} 52. Kd4 {[%clk 0:00:21]}  Kc6 {[%clk 0:01:11]} 53. Kd3 {[%clk 0:00:21]}  Kb6 {[%clk 0:01:07]} 54. Kd4 {[%clk 0:00:20]} 1/2-1/2


[Site "https://www.chess.com"]